fUSD/lending_fUSD_20250530
["ID","MTS","AMOUNT","RATE_DAILY","PERIOD"]
[363129349,1748593849613,-500.0,0.00021918,2]
[363129350,1748593849622,-620.0,0.00021918,2]
[363129351,1748593849632,-500.0,0.00021918,2]
[363129352,1748593849641,-500.0,0.00021918,2]
[363129353,1748593849651,-216.77941848,0.00021918,2]
[363129354,1748593849660,-1077.0,0.00021922,2]
[363129355,1748593849670,-3007.36524133,0.00021925,2]
[363129356,1748593849679,-2110.0,0.0002193,2]
[363129357,1748593849689,-6804.72195953,0.00021932,2]
[363129358,1748593849698,-166.66666667,0.00021945,2]
[363129359,1748593849708,-168.1928613,0.00021945,2]
[363129360,1748593849718,-166.66666667,0.00021945,2]
[363129361,1748593849728,-3007.36524133,0.00021952,2]
[363129362,1748593849738,-199.10769615,0.00021954,2]
[363129363,1748593849747,-500.0,0.00021973,2]
[363129364,1748593849757,-498.04109732,0.00021973,2]
[363129365,1748593849767,-500.0,0.00021973,2]
[363129366,1748593849777,-159.532442,0.00021973,2]
[363129367,1748593849786,-527.84452092,0.00021973,2]
[363129368,1748593849796,-503.13693515,0.00021973,2]
[363129369,1748593849805,-500.76877422,0.00021973,2]
[363129370,1748593849813,-159.58238895,0.00021973,2]
[363129371,1748593849822,-500.0,0.00021973,2]
[363129372,1748593849832,-501.36825752,0.00021973,2]
[363129373,1748593849844,-500.0,0.00021973,2]
[363129374,1748593849853,-502.24751098,0.00021973,2]
[363129375,1748593849863,-500.0,0.00021973,2]
[363129376,1748593849872,-208.63092654,0.00021973,2]
[363129377,1748593849881,-500.0,0.00021973,2]
[363129378,1748593849891,-502.80402671,0.00021973,2]
[363129379,1748593849900,-500.0,0.00021973,2]
[363129380,1748593849910,-500.0,0.00021973,2]
[363129381,1748593849919,-500.0,0.00021973,2]
[363129382,1748593849929,-500.0,0.00021973,2]
[363129383,1748593849939,-500.70986042,0.00021973,2]
[363129384,1748593849949,-500.0,0.00021973,2]
[363129385,1748593849959,-500.0,0.00021973,2]
[363129386,1748593849968,-3007.36524133,0.00021979,2]
[363129387,1748593849978,-1166.803723,0.00021981,3]
[363129388,1748593849987,-763.65886379,0.00021988,2]
[363129389,1748593849997,-178.80191287,0.0002199,2]
[363129390,1748593850007,-160767.22319852,0.00022,2]
[363129391,1748593850017,-166.0,0.00022,2]
[363129392,1748593850026,-181.0,0.00022,2]
[363129393,1748593850035,-3007.36524133,0.00022006,2]
[363129394,1748593850045,-3007.36524133,0.00022033,2]
[363129395,1748593850054,-4068.0,0.0002204,2]
[363129396,1748593850064,-6929.0,0.0002204,2]
[363129397,1748593850074,-278.467,0.0002204,2]
[363129398,1748593850083,-882.0,0.0002204,2]
[363129399,1748593850093,-763.65886379,0.00022045,2]
[363129400,1748593850103,-3007.36524133,0.0002206,2]
[363129401,1748593850112,-579.50301407,0.00022086,2]
[363129402,1748593850125,-3007.36524133,0.00022087,2]
[363129403,1748593850134,-199.10769615,0.00022091,2]
[363129404,1748593850144,-763.65886379,0.00022102,2]
[363129405,1748593850153,-8263.48252436,0.00022108,2]
[363129406,1748593850164,-3007.36524133,0.00022114,2]
[363129407,1748593850173,-3007.36524133,0.00022141,2]
[363129408,1748593850183,-763.65886379,0.00022159,2]
[363129409,1748593850193,-150.0,0.00022161,2]
[363129410,1748593850203,-150.0,0.00022163,2]
[363129411,1748593850214,-168.1928613,0.00022164,2]
[363129412,1748593850223,-166.66666667,0.00022164,2]
[363129413,1748593850233,-3007.36524133,0.00022168,2]
[363129414,1748593850243,-500.0,0.00022173,2]
[363129415,1748593850252,-847.15946128,0.0002219,2]
[363129416,1748593850261,-500.0,0.0002219,2]
[363129417,1748593850272,-500.0,0.0002219,2]
[363129418,1748593850281,-500.0,0.0002219,2]
[363129419,1748593850291,-167.42224185,0.0002219,2]
[363129420,1748593850301,-500.0,0.0002219,2]
[363129421,1748593850310,-204.69806397,0.0002219,2]
[363129422,1748593850319,-500.0,0.0002219,2]
[363129423,1748593850328,-500.0,0.0002219,2]
[363129424,1748593850338,-197.59433205,0.0002219,2]
[363129425,1748593850349,-500.0,0.0002219,2]
[363129426,1748593850359,-500.0,0.0002219,2]
[363129427,1748593850368,-500.0,0.0002219,2]
[363129428,1748593850377,-500.0,0.0002219,2]
[363129429,1748593850387,-490.59,0.0002219,2]
[363129430,1748593850396,-151.0,0.00022191,7]
[363129431,1748593850405,-420.0,0.00022191,2]
[363129432,1748593850415,-420.0,0.00022191,2]
[363129433,1748593850424,-420.0,0.00022191,2]
[363129434,1748593850434,-420.0,0.00022191,2]
[363129435,1748593850443,-152.56483881,0.00022191,2]
[363129436,1748593850452,-541.7,0.00022191,2]
[363129437,1748593850462,-420.0,0.00022191,2]
[363129438,1748593850472,-420.0,0.00022191,2]
[363129439,1748593850482,-503.7571613,0.00022191,2]
[363129440,1748593850492,-420.0,0.00022191,2]
[363129441,1748593850501,-315.04010749,0.00022191,2]
[363129442,1748593850511,-420.0,0.00022191,2]
[363129443,1748593850521,-464.7,0.00022191,2]
[363129444,1748593850531,-456.85,0.00022191,2]
[363129445,1748593850541,-223.85,0.00022191,2]
[363129446,1748593850550,-420.0,0.00022191,2]
[363129447,1748593850559,-420.0,0.00022191,2]
[363129448,1748593850569,-518.88265141,0.00022191,2]
[363129449,1748593850578,-420.0,0.00022191,2]
[363129450,1748593850588,-420.0,0.00022191,2]
[363129451,1748593850598,-525.4460781,0.00022191,2]
[363129452,1748593850608,-420.0,0.00022191,2]
[363129453,1748593850618,-438.38,0.00022191,2]
[363129454,1748593850628,-585.13,0.00022191,2]
[363129455,1748593850637,-420.0,0.00022191,2]
[363129456,1748593850647,-550.35,0.00022191,2]
[363129457,1748593850657,-685.02,0.00022191,2]
[363129458,1748593850666,-532.86,0.00022191,2]
[363129459,1748593850676,-420.0,0.00022191,2]
[363129460,1748593850686,-817.71,0.00022191,2]
[363129461,1748593850696,-864.57,0.00022191,2]
[363129462,1748593850707,-420.0,0.00022191,2]
[363129463,1748593850717,-420.0,0.00022191,2]
[363129464,1748593850726,-715.8,0.00022191,2]
[363129465,1748593850736,-316.93293961,0.00022191,2]
[363129466,1748593850746,-805.75,0.00022191,2]
[363129467,1748593850755,-420.0,0.00022191,2]
[363129468,1748593850765,-420.0,0.00022191,2]
[363129469,1748593850774,-420.0,0.00022191,2]
[363129470,1748593850784,-529.39,0.00022191,2]
[363129471,1748593850793,-420.0,0.00022191,2]
[363129472,1748593850802,-420.0,0.00022191,2]
[363129473,1748593850812,-712.17,0.00022191,2]
[363129474,1748593850821,-547.94,0.00022191,2]
[363129475,1748593850831,-420.0,0.00022191,2]
[363129476,1748593850842,-250.0,0.00022191,2]
[363129477,1748593850851,-420.0,0.00022191,2]
[363129478,1748593850859,-420.0,0.00022191,2]
[363129479,1748593850868,-420.0,0.00022191,2]
[363129480,1748593850877,-505.88206369,0.00022191,2]
[363129481,1748593850887,-688.31,0.00022191,2]
[363129482,1748593850897,-1097.86,0.00022191,2]
[363129483,1748593850906,-420.0,0.00022191,2]
[363129484,1748593850916,-420.0,0.00022191,2]
[363129485,1748593850925,-420.0,0.00022191,2]
[363129486,1748593850935,-579.73,0.00022191,2]
[363129487,1748593850944,-420.0,0.00022191,2]
[363129488,1748593850953,-420.0,0.00022191,2]
[363129489,1748593850963,-420.0,0.00022191,2]
[363129490,1748593850973,-420.0,0.00022191,2]
[363129491,1748593850983,-420.0,0.00022191,2]
[363129492,1748593850993,-420.0,0.00022191,2]
[363129493,1748593851003,-420.0,0.00022191,2]
[363129494,1748593851012,-420.0,0.00022191,2]
[363129495,1748593851022,-500.0,0.00022191,2]
[363129496,1748593851031,-420.0,0.00022191,2]
[363129497,1748593851040,-420.0,0.00022191,2]
[363129498,1748593851050,-429.86,0.00022191,2]
[363129499,1748593851060,-420.0,0.00022191,2]
[363129500,1748593851069,-420.0,0.00022191,2]
[363129501,1748593851079,-160.0,0.00022191,2]
[363129502,1748593851088,-420.0,0.00022191,2]
[363129503,1748593851099,-505.79703557,0.00022191,2]
[363129504,1748593851109,-1387.22,0.00022191,2]
[363129505,1748593851120,-300.0,0.00022191,2]
[363129506,1748593851130,-420.0,0.00022191,2]
[363129507,1748593851139,-420.0,0.00022191,2]
[363129508,1748593851149,-420.0,0.00022191,2]
[363129509,1748593851159,-853.39,0.00022191,2]
[363129510,1748593851169,-420.0,0.00022191,2]
[363129511,1748593851178,-475.78,0.00022191,2]
[363129512,1748593851188,-420.0,0.00022191,2]
[363129513,1748593851198,-420.0,0.00022191,2]
[363129514,1748593851208,-420.0,0.00022191,2]
[363129515,1748593851217,-422.5,0.00022191,2]
[363129516,1748593851226,-321.72633216,0.00022191,2]
[363129517,1748593851235,-161.86898578,0.00022191,2]
[363129518,1748593851245,-420.0,0.00022191,2]
[363129519,1748593851254,-420.0,0.00022191,2]
[363129520,1748593851263,-164.68215292,0.00022191,2]
[363129521,1748593851273,-160.0,0.00022191,2]
[363129522,1748593851282,-420.0,0.00022191,2]
[363129523,1748593851292,-468.66,0.00022191,2]
[363129524,1748593851301,-674.08,0.00022191,2]
[363129525,1748593851312,-610.1,0.00022191,2]
[363129526,1748593851321,-420.0,0.00022191,2]
[363129527,1748593851331,-420.0,0.00022191,2]
[363129528,1748593851341,-769.95,0.00022191,2]
[363129529,1748593851350,-420.0,0.00022191,2]
[363129530,1748593851360,-420.0,0.00022191,2]
[363129531,1748593851370,-420.0,0.00022191,2]
[363129532,1748593851379,-420.0,0.00022191,2]
[363129533,1748593851389,-420.0,0.00022191,2]
[363129534,1748593851399,-420.0,0.00022191,2]
[363129535,1748593851408,-160.0,0.00022191,2]
[363129536,1748593851418,-420.0,0.00022191,2]
[363129537,1748593851427,-420.0,0.00022191,2]
[363129538,1748593851437,-420.0,0.00022191,2]
[363129539,1748593851448,-420.0,0.00022191,2]
[363129540,1748593851457,-932.83,0.00022191,2]
[363129541,1748593851467,-431.49,0.00022191,2]
[363129542,1748593851476,-497.09,0.00022191,2]
[363129543,1748593851485,-420.0,0.00022191,2]
[363129544,1748593851495,-533.16,0.00022191,2]
[363129545,1748593851504,-922.78,0.00022191,2]
[363129546,1748593851513,-420.0,0.00022191,2]
[363129547,1748593851523,-420.0,0.00022191,2]
[363129548,1748593851532,-420.0,0.00022191,2]
[363129549,1748593851542,-420.0,0.00022191,2]
[363129550,1748593851551,-420.0,0.00022191,2]
[363129551,1748593851561,-341.66212311,0.00022191,2]
[363129552,1748593851571,-160.0,0.00022191,2]
[363129553,1748593851580,-477.41,0.00022191,2]
[363129554,1748593851590,-162.74630269,0.00022191,2]
[363129555,1748593851670,-420.0,0.00022191,2]
[363129556,1748593851681,-420.0,0.00022191,2]
[363129557,1748593851691,-420.0,0.00022191,2]
[363129558,1748593851700,-420.0,0.00022191,2]
[363129559,1748593851709,-420.0,0.00022191,2]
[363129560,1748593851719,-420.0,0.00022191,2]
[363129561,1748593851728,-162.32798454,0.00022191,2]
[363129562,1748593851737,-420.0,0.00022191,2]
[363129563,1748593851746,-563.07,0.00022191,2]
[363129564,1748593851756,-420.0,0.00022191,2]
[363129565,1748593851765,-160.0,0.00022191,2]
[363129566,1748593851775,-420.0,0.00022191,2]
[363129567,1748593851784,-420.0,0.00022191,2]
[363129568,1748593851794,-420.0,0.00022191,2]
[363129569,1748593851803,-420.0,0.00022191,2]
[363129570,1748593851812,-420.0,0.00022191,2]
[363129571,1748593851822,-420.83,0.00022191,2]
[363129572,1748593851831,-420.0,0.00022191,2]
[363129573,1748593851840,-1371.387898,0.00022191,2]
[363129574,1748593851851,-1613.541347,0.00022191,2]
[363129575,1748593851860,-599.04,0.00022191,2]
[363129576,1748593851868,-420.0,0.00022191,2]
[363129577,1748593851877,-420.0,0.00022191,2]
[363129578,1748593851885,-711.63,0.00022191,2]
[363129579,1748593851894,-491.46,0.00022191,2]
[363129580,1748593851902,-420.0,0.00022191,2]
[363129581,1748593851910,-421.03,0.00022191,2]
[363129582,1748593851918,-420.0,0.00022191,2]
[363129583,1748593851925,-281.13664647,0.00022191,2]
[363129584,1748593851932,-493.37,0.00022191,2]
[363129585,1748593851940,-420.0,0.00022191,2]
[363129586,1748593851947,-1267.24,0.00022191,2]
[363129587,1748593851953,-420.0,0.00022191,2]
[363129588,1748593851960,-430.95,0.00022191,2]
[363129589,1748593851967,-254.89491866,0.00022191,2]
[363129590,1748593851973,-420.0,0.00022191,2]
[363129591,1748593851979,-420.0,0.00022191,2]
[363129592,1748593851986,-420.0,0.00022191,2]
[363129593,1748593851993,-420.0,0.00022191,2]
[363129594,1748593852001,-420.0,0.00022191,2]
[363129595,1748593852010,-433.79,0.00022191,2]
[363129596,1748593852019,-768.3,0.00022191,2]
[363129597,1748593852028,-420.0,0.00022191,2]
[363129598,1748593852037,-842.78,0.00022191,2]
[363129599,1748593852046,-420.0,0.00022191,2]
[363129600,1748593852056,-420.0,0.00022191,2]
[363129601,1748593852065,-420.0,0.00022191,2]
[363129602,1748593852075,-420.0,0.00022191,2]
[363129603,1748593852085,-872.27,0.00022191,2]
[363129604,1748593852096,-1032.45,0.00022191,2]
[363129605,1748593852106,-420.0,0.00022191,2]
[363129606,1748593852116,-562.67,0.00022191,2]
[363129607,1748593852128,-420.0,0.00022191,2]
[363129608,1748593852138,-488.85,0.00022191,2]
[363129609,1748593852147,-420.0,0.00022191,2]
[363129610,1748593852157,-160.0,0.00022191,2]
[363129611,1748593852167,-420.0,0.00022191,2]
[363129612,1748593852176,-206.55841864,0.00022191,2]
[363129613,1748593852185,-420.0,0.00022191,2]
[363129614,1748593852194,-420.0,0.00022191,2]
[363129615,1748593852203,-420.0,0.00022191,2]
[363129616,1748593852212,-420.0,0.00022191,2]
[363129617,1748593852222,-420.0,0.00022191,2]
[363129618,1748593852231,-420.0,0.00022191,2]
[363129619,1748593852241,-848.69,0.00022191,2]
[363129620,1748593852250,-2182.41,0.00022191,2]
[363129621,1748593852259,-1081.79,0.00022191,2]
[363129622,1748593852269,-420.0,0.00022191,2]
[363129623,1748593852278,-420.0,0.00022191,2]
[363129624,1748593852288,-1561.27,0.00022191,2]
[363129625,1748593852297,-917.29,0.00022191,2]
[363129626,1748593852307,-463.81,0.00022191,2]
[363129627,1748593852317,-420.0,0.00022191,2]
[363129628,1748593852327,-420.0,0.00022191,2]
[363129629,1748593852336,-719.08,0.00022191,2]
[363129630,1748593852346,-1143.2,0.00022191,2]
[363129631,1748593852354,-1839.83,0.00022191,2]
[363129632,1748593852363,-420.0,0.00022191,2]
[363129633,1748593852371,-420.0,0.00022191,2]
[363129634,1748593852380,-420.0,0.00022191,2]
[363129635,1748593852389,-428.05,0.00022191,2]
[363129636,1748593852397,-420.0,0.00022191,2]
[363129637,1748593852406,-420.0,0.00022191,2]
[363129638,1748593852415,-219.64,0.00022191,2]
[363129639,1748593852423,-2806.32,0.00022191,2]
[363129640,1748593852432,-420.0,0.00022191,2]
[363129641,1748593852440,-617.71,0.00022191,2]
[363129642,1748593852449,-1285.36,0.00022191,2]
[363129643,1748593852459,-1264.19,0.00022191,2]
[363129644,1748593852467,-740.74,0.00022191,2]
[363129645,1748593852476,-420.0,0.00022191,2]
[363129646,1748593852486,-590.77,0.00022191,2]
[363129647,1748593852495,-420.0,0.00022191,2]
[363129648,1748593852505,-420.0,0.00022191,2]
[363129649,1748593852514,-762.5,0.00022191,2]
[363129650,1748593852524,-536.43,0.00022191,2]
[363129651,1748593852533,-420.0,0.00022191,2]
[363129652,1748593852543,-473.43,0.00022191,2]
[363129653,1748593852553,-420.0,0.00022191,2]
[363129654,1748593852564,-420.0,0.00022191,2]
[363129655,1748593852573,-391.09081236,0.00022191,2]
[363129656,1748593852583,-499.78,0.00022191,2]
[363129657,1748593852593,-1626.93,0.00022191,2]
[363129658,1748593852603,-654.14,0.00022191,2]
[363129659,1748593852612,-165.203388,0.00022191,2]
[363129660,1748593852621,-560.56913432,0.00022191,2]
[363129661,1748593852630,-420.0,0.00022191,2]
[363129662,1748593852640,-420.0,0.00022191,2]
[363129663,1748593852650,-420.0,0.00022191,2]
[363129664,1748593852660,-517.92,0.00022191,2]
[363129665,1748593852670,-831.8,0.00022191,2]
[363129666,1748593852680,-1339.52,0.00022191,2]
[363129667,1748593852690,-1423.4,0.00022191,2]
[363129668,1748593852699,-755.14,0.00022191,2]
[363129669,1748593852709,-420.0,0.00022191,2]
[363129670,1748593852719,-434.43,0.00022191,2]
[363129671,1748593852728,-160.0,0.00022191,2]
[363129672,1748593852738,-420.0,0.00022191,2]
[363129673,1748593852747,-420.0,0.00022191,2]
[363129674,1748593852757,-420.0,0.00022191,2]
[363129675,1748593852766,-1442.73,0.00022191,2]
[363129676,1748593852776,-420.0,0.00022191,2]
[363129677,1748593852785,-160.0,0.00022191,2]
[363129678,1748593852796,-420.0,0.00022191,2]
[363129679,1748593852805,-826.81,0.00022191,2]
[363129680,1748593852815,-420.0,0.00022191,2]
[363129681,1748593852825,-420.0,0.00022191,2]
[363129682,1748593852834,-420.0,0.00022191,2]
[363129683,1748593852844,-420.0,0.00022191,2]
[363129684,1748593852853,-578.5,0.00022191,2]
[363129685,1748593852862,-420.0,0.00022191,2]
[363129686,1748593852872,-1415.9,0.00022191,2]
[363129687,1748593852882,-1980.22,0.00022191,2]
[363129688,1748593852891,-1366.19,0.00022191,2]
[363129689,1748593852900,-800.9,0.00022191,2]
[363129690,1748593852909,-420.0,0.00022191,2]
[363129691,1748593852918,-1601.11,0.00022191,2]
[363129692,1748593852928,-751.45,0.00022191,2]
[363129693,1748593852938,-420.0,0.00022191,2]
[363129694,1748593852948,-1566.6,0.00022191,2]
[363129695,1748593852958,-1236.81,0.00022191,2]
[363129696,1748593852967,-160.0,0.00022191,2]
[363129697,1748593852977,-160.0,0.00022191,2]
[363129698,1748593852986,-2431.8,0.00022191,2]
[363129699,1748593852995,-737.73,0.00022191,2]
[363129700,1748593853005,-420.0,0.00022191,2]
[363129701,1748593853015,-1248.86,0.00022191,2]
[363129702,1748593853024,-420.0,0.00022191,2]
[363129703,1748593853034,-572.26,0.00022191,2]
[363129704,1748593853043,-595.83,0.00022191,2]
[363129705,1748593853053,-160.0,0.00022191,2]
[363129706,1748593853063,-420.0,0.00022191,2]
[363129707,1748593853072,-420.0,0.00022191,2]
[363129708,1748593853081,-420.0,0.00022191,2]
[363129709,1748593853091,-497.83,0.00022191,2]
[363129710,1748593853102,-420.0,0.00022191,2]
[363129711,1748593853112,-501.7,0.00022191,2]
[363129712,1748593853122,-420.0,0.00022191,2]
[363129713,1748593853132,-424.39540717,0.00022191,2]
[363129714,1748593853141,-1245.89,0.00022191,2]
[363129715,1748593853151,-420.0,0.00022191,2]
[363129716,1748593853160,-654.07,0.00022191,2]
[363129717,1748593853170,-848.05,0.00022191,2]
[363129718,1748593853180,-420.0,0.00022191,2]
[363129719,1748593853189,-420.0,0.00022191,2]
[363129720,1748593853198,-485.11,0.00022191,2]
[363129721,1748593853210,-420.0,0.00022191,2]
[363129722,1748593853220,-420.0,0.00022191,2]
[363129723,1748593853231,-832.79,0.00022191,2]
[363129724,1748593853240,-297.92,0.00022191,2]
[363129725,1748593853249,-1166.64,0.00022191,2]
[363129726,1748593853259,-2524.11,0.00022191,2]
[363129727,1748593853268,-420.0,0.00022191,2]
[363129728,1748593853277,-426.5,0.00022191,2]
[363129729,1748593853286,-456.84,0.00022191,2]
[363129730,1748593853296,-705.96,0.00022191,2]
[363129731,1748593853306,-692.17,0.00022191,2]
[363129732,1748593853315,-748.84,0.00022191,2]
[363129733,1748593853325,-488.42,0.00022191,2]
[363129734,1748593853334,-161.7080137,0.00022191,2]
[363129735,1748593853344,-1985.26,0.00022191,2]
[363129736,1748593853353,-599.37,0.00022191,2]
[363129737,1748593853363,-420.0,0.00022191,2]
[363129738,1748593853372,-898.36,0.00022191,2]
[363129739,1748593853382,-473.65,0.00022191,2]
[363129740,1748593853391,-420.0,0.00022191,2]
[363129741,1748593853400,-798.52,0.00022191,2]
[363129742,1748593853410,-1045.82,0.00022191,2]
[363129743,1748593853419,-420.0,0.00022191,2]
[363129744,1748593853429,-420.0,0.00022191,2]
[363129745,1748593853438,-951.56,0.00022191,2]
[363129746,1748593853448,-420.0,0.00022191,2]
[363129747,1748593853458,-420.0,0.00022191,2]
[363129748,1748593853468,-420.0,0.00022191,2]
[363129749,1748593853477,-420.0,0.00022191,2]
[363129750,1748593853488,-420.0,0.00022191,2]
[363129751,1748593853498,-1258.39,0.00022191,2]
[363129752,1748593853507,-1012.4,0.00022191,2]
[363129753,1748593853517,-493.62414178,0.00022191,2]
[363129754,1748593853527,-420.0,0.00022191,2]
[363129755,1748593853536,-160.0,0.00022191,2]
[363129756,1748593853546,-420.0,0.00022191,2]
[363129757,1748593853556,-655.77,0.00022191,2]
[363129758,1748593853566,-420.0,0.00022191,2]
[363129759,1748593853575,-856.89,0.00022191,2]
[363129760,1748593853585,-528.98,0.00022191,2]
[363129761,1748593853595,-612.46,0.00022191,2]
[363129762,1748593853605,-730.29,0.00022191,2]
[363129763,1748593853615,-420.0,0.00022191,2]
[363129764,1748593853625,-2028.31,0.00022191,2]
[363129765,1748593853634,-420.0,0.00022191,2]
[363129766,1748593853643,-434.68,0.00022191,2]
[363129767,1748593853653,-1321.72,0.00022191,2]
[363129768,1748593853663,-649.42,0.00022191,2]
[363129769,1748593853673,-420.0,0.00022191,2]
[363129770,1748593853682,-221.7,0.00022191,2]
[363129771,1748593853692,-1893.92,0.00022191,2]
[363129772,1748593853702,-876.79,0.00022191,2]
[363129773,1748593853711,-420.0,0.00022191,2]
[363129774,1748593853722,-568.6,0.00022191,2]
[363129775,1748593853732,-420.0,0.00022191,2]
[363129776,1748593853741,-420.0,0.00022191,2]
[363129777,1748593853750,-420.0,0.00022191,2]
[363129778,1748593853759,-800.23,0.00022191,2]
[363129779,1748593853769,-545.42,0.00022191,2]
[363129780,1748593853779,-1381.39,0.00022191,2]
[363129781,1748593853788,-420.0,0.00022191,2]
[363129782,1748593853798,-420.0,0.00022191,2]
[363129783,1748593853807,-420.0,0.00022191,2]
[363129784,1748593853817,-420.0,0.00022191,2]
[363129785,1748593853826,-366.34003844,0.00022191,2]
[363129786,1748593853836,-606.74,0.00022191,2]
[363129787,1748593853846,-2410.04,0.00022191,2]
[363129788,1748593853856,-420.0,0.00022191,2]
[363129789,1748593853866,-640.34,0.00022191,2]
[363129790,1748593853875,-707.03,0.00022191,2]
[363129791,1748593853884,-420.0,0.00022191,2]
[363129792,1748593853893,-664.1,0.00022191,2]
[363129793,1748593853903,-420.0,0.00022191,2]
[363129794,1748593853912,-420.0,0.00022191,2]
[363129795,1748593853922,-420.0,0.00022191,2]
[363129796,1748593853931,-926.74,0.00022191,2]
[363129797,1748593853940,-522.86,0.00022191,2]
[363129798,1748593853950,-621.8,0.00022191,2]
[363129799,1748593853959,-420.0,0.00022191,2]
[363129800,1748593853969,-1067.14,0.00022191,2]
[363129801,1748593853979,-539.63260274,0.00022191,2]
[363129802,1748593853988,-420.0,0.00022191,2]
[363129803,1748593853998,-420.0,0.00022191,2]
[363129804,1748593854009,-430.98,0.00022191,2]
[363129805,1748593854018,-420.0,0.00022191,2]
[363129806,1748593854028,-420.0,0.00022191,2]
[363129807,1748593854037,-607.45,0.00022191,2]
[363129808,1748593854047,-644.8,0.00022191,2]
[363129809,1748593854057,-533.57,0.00022191,2]
[363129810,1748593854067,-506.0,0.00022191,2]
[363129811,1748593854076,-470.65412982,0.00022191,2]
[363129812,1748593854085,-1072.32,0.00022191,2]
[363129813,1748593854095,-420.0,0.00022191,2]
[363129814,1748593854105,-420.0,0.00022191,2]
[363129815,1748593854120,-790.23,0.00022191,2]
[363129816,1748593854129,-1013.65,0.00022191,2]
[363129817,1748593854139,-420.0,0.00022191,2]
[363129818,1748593854148,-941.01,0.00022191,2]
[363129819,1748593854159,-544.5,0.00022191,2]
[363129820,1748593854168,-1513.7,0.00022191,2]
[363129821,1748593854178,-420.0,0.00022191,2]
[363129822,1748593854187,-437.61,0.00022191,2]
[363129823,1748593854200,-578.16,0.00022191,2]
[363129824,1748593854210,-580.87,0.00022191,2]
[363129825,1748593854219,-537.41,0.00022191,2]
[363129826,1748593854229,-928.56,0.00022191,2]
[363129827,1748593854239,-420.0,0.00022191,2]
[363129828,1748593854249,-420.0,0.00022191,2]
[363129829,1748593854258,-420.0,0.00022191,2]
[363129830,1748593854267,-420.0,0.00022191,2]
[363129831,1748593854276,-1293.22,0.00022191,2]
[363129832,1748593854286,-431.71,0.00022191,2]
[363129833,1748593854295,-451.07276102,0.00022191,2]
[363129834,1748593854304,-420.0,0.00022191,2]
[363129835,1748593854314,-1281.51,0.00022191,2]
[363129836,1748593854323,-1443.91,0.00022191,2]
[363129837,1748593854333,-556.09,0.00022191,2]
[363129838,1748593854343,-420.0,0.00022191,2]
[363129839,1748593854354,-436.16,0.00022191,2]
[363129840,1748593854363,-570.88,0.00022191,2]
[363129841,1748593854373,-420.0,0.00022191,2]
[363129842,1748593854382,-1051.67,0.00022191,2]
[363129843,1748593854391,-469.8,0.00022191,2]
[363129844,1748593854400,-420.0,0.00022191,2]
[363129845,1748593854410,-420.0,0.00022191,2]
[363129846,1748593854419,-1106.72,0.00022191,2]
[363129847,1748593854428,-420.0,0.00022191,2]
[363129848,1748593854438,-1451.34,0.00022191,2]